lending/lending_fUSD_20241113
["ID","MTS","AMOUNT","RATE_DAILY","PERIOD"]
[342148132,1731509441760,-568.315,0.00012298,2]
[342148134,1731509441769,-164.848,0.00012298,2]
[342148136,1731509441779,-628.0,0.00012298,2]
[342148138,1731509441788,-625.985,0.00012298,2]
[342148140,1731509441798,-1939.897,0.00012298,2]
[342148142,1731509441808,-1259.0,0.00012298,2]
[342148144,1731509441818,-814.0,0.00012298,2]
[342148146,1731509441827,-3745.0,0.00012298,2]
[342148148,1731509441837,-922.0,0.00012298,2]
[342148150,1731509441847,-3488.0,0.00012298,2]
[342148152,1731509441856,-150.0,0.00012298,2]
[342148154,1731509441867,-13637.0,0.00012298,2]
[342148156,1731509441876,-1160.0,0.00012298,2]
[342148158,1731509441886,-5931.0,0.00012298,2]
[342148160,1731509441896,-244.724,0.00012298,2]
[342148162,1731509441906,-220.0,0.00012298,2]
[342148164,1731509441916,-200.0,0.00012298,2]
[342148166,1731509441925,-1091.0,0.00012298,2]
[342148168,1731509441939,-1210.0,0.000123,2]
[342148170,1731509441949,-1133.0,0.000123,2]
[342148172,1731509441959,-31553.20608655,0.00012382,2]
[342148174,1731509441968,-64462.24710646,0.00012382,2]
[342148176,1731509441978,-296.75784033,0.000124,2]
[342148178,1731509441988,-1000.0,0.000124,2]
[342148180,1731509441998,-1000.0,0.000124,2]
[342148182,1731509442007,-227.26,0.00012458,2]
[342148184,1731509442017,-150.0,0.00012467,2]
[342148186,1731509442026,-7293.45302898,0.00012467,2]
[342148188,1731509442036,-166.21,0.00012487,2]
[342148190,1731509442046,-5800.0,0.000125,4]
[342148192,1731509442055,-1000.0,0.00012505,2]
[342148194,1731509442065,-511.13,0.00012543,2]
[342148196,1731509442075,-150.0,0.00012548,2]
[342148198,1731509442084,-1100.0,0.000126,4]
[342148200,1731509442094,-1000.0,0.000126,2]
[342148202,1731509442103,-3304.65,0.00012603,2]
[342148204,1731509442112,-2878.89,0.00012669,2]
[342148206,1731509442121,-155.67701872,0.000127,2]
[342148208,1731509442131,-1100.0,0.000127,4]
[342148210,1731509442140,-259.78519766,0.000127,2]
[342148212,1731509442149,-835.36851794,0.000127,2]
[342148214,1731509442158,-2128.2,0.00012755,2]
[342148216,1731509442168,-546.92184914,0.0001279,2]
[342148218,1731509442177,-2500.0,0.000128,2]
[342148220,1731509442189,-339517.83607925,0.000128,2]
[342148223,1731509442203,-4518.27,0.000128,2]
[342148225,1731509442215,-8987.0,0.000128,2]
[342148227,1731509442226,-2588.95807107,0.000128,2]
[342148246,1731509442395,-3254.999996,0.000128,2]
[342148248,1731509442407,-454117.51520985,0.000128,2]
[342148251,1731509442430,-1809.29,0.000128,2]
[342148254,1731509442444,-1367.38539442,0.000128,2]
[342148256,1731509442456,-39987.05620574,0.000128,2]
[342148259,1731509442468,-476.91525,0.000128,2]
[342148261,1731509442480,-274.176,0.000128,2]
[342148287,1731509442709,-406.32105669,0.00010528,2]
[342148290,1731509442720,-328.32020098,0.00010922,2]
[342148306,1731509442770,-78.00085571,0.00010922,2]
[342148310,1731509442780,-406.32105669,0.00011044,2]
[342148313,1731509442789,-406.32105669,0.00011425,2]
[342148316,1731509442799,-2418.13969249,0.000128,2]
[342148318,1731509442811,-20562.31177346,0.000128,2]
[342148320,1731509442823,-1403.8217749,0.000128,2]
[342148323,1731509442834,-169580.07923736,0.000128,2]
[342148325,1731509442844,-1100.0,0.000128,4]
[342148327,1731509442853,-259.78519765,0.000128,2]
[342148329,1731509442862,-835.36851792,0.000128,2]
[342148331,1731509442872,-250.0,0.00012877,2]
[342148333,1731509442882,-227.26,0.00012884,2]
[342148335,1731509442891,-5068.45182301,0.0001289,2]
[342148337,1731509442901,-5068.45182299,0.00012895,2]
[342148339,1731509442911,-1000.0,0.00012899,2]
[342148341,1731509442920,-1000.0,0.00012899,2]
[342148343,1731509442932,-8500.0,0.000129,2]
[342148345,1731509442942,-5262.91319665,0.000129,2]
[342148347,1731509442952,-296.75784033,0.000129,2]
[342148349,1731509442962,-200.0,0.000129,2]
[342148351,1731509442972,-200.0,0.000129,2]
[342148353,1731509442981,-9758.54349586,0.000129,2]
[342148355,1731509442991,-1100.0,0.000129,4]
[342148357,1731509443001,-259.78519765,0.000129,2]
[342148359,1731509443011,-835.36851792,0.000129,2]
[342148362,1731509443021,-5068.45182299,0.000129,2]
[342148364,1731509443031,-6000.0,0.00012924,2]
[342148366,1731509443041,-1080.48836848,0.00012989,3]
[342148368,1731509443050,-229553.2949614,0.0001299,2]
[342148370,1731509443062,-991.76342095,0.0001299,2]
[342148372,1731509443074,-498.99489894,0.0001299,2]
[342148374,1731509443085,-1559.80161734,0.0001299,2]
[342148377,1731509443101,-1814.88,0.0001299,2]
[342148379,1731509443113,-3624.92,0.0001299,2]
[342148381,1731509443124,-405.02824387,0.0001299,2]
[342148384,1731509443136,-635.88,0.0001299,2]
[342148386,1731509443147,-3531.11059694,0.0001299,2]
[342148388,1731509443158,-45135.8,0.0001299,2]
[342148390,1731509443170,-645.78,0.0001299,2]
[342148393,1731509443183,-797.41154279,0.0001299,2]
[342148395,1731509443195,-266723.18104086,0.0001299,2]
[342148397,1731509443206,-5839.38820722,0.0001299,2]
[342148400,1731509443222,-547.52749393,0.0001299,2]
[342148402,1731509443234,-304.96,0.0001299,2]
[342148404,1731509443246,-2852.0,0.0001299,2]
[342148406,1731509443257,-8434.96064727,0.0001299,2]
[342148409,1731509443269,-422.25836631,0.0001299,2]
[342148411,1731509443280,-332.54659203,0.0001299,2]
[342148413,1731509443292,-2348.78864617,0.0001299,2]
[342148611,1731509445240,-151780.15986696,0.0001299,2]
[342148613,1731509445252,-507.10642999,0.0001299,2]
[342148615,1731509445265,-1787.23420954,0.0001299,2]
[342148618,1731509445276,-316.7191508,0.0001299,2]
[342148620,1731509445288,-450.4502595,0.0001299,2]
[342148622,1731509445300,-3027.64551552,0.0001299,2]
[342148624,1731509445312,-12651.38887235,0.0001299,2]
[342148626,1731509445323,-321.46219928,0.0001299,2]
[342148647,1731509445513,-254.68,0.00010959,2]
[342148649,1731509445524,-194.562,0.00012471,2]
[342148651,1731509445536,-499.87178685,0.00012471,2]
[342148654,1731509445548,-308.16866137,0.00012471,2]
[342148656,1731509445558,-12589.28063633,0.0001299,2]
[342148658,1731509445574,-6015.78843631,0.0001299,2]
[342148662,1731509445591,-1160.63435037,0.0001299,2]
[342148665,1731509445604,-4521.3,0.0001299,2]
[342148669,1731509445618,-3300.5,0.0001299,2]
[342148672,1731509445632,-534.48640085,0.0001299,2]
[342148674,1731509445645,-90446.74604367,0.0001299,2]
[342148677,1731509445657,-26521.89857686,0.0001299,2]
[342148686,1731509445695,-14170.16376048,0.0001299,2]
[342148690,1731509445708,-836.51407952,0.0001299,2]
[342148692,1731509445720,-591.2000005,0.0001299,2]
[342148695,1731509445733,-1372.5442262,0.0001299,2]
[342148698,1731509445745,-671981.73205939,0.0001299,2]
[342148701,1731509445756,-151.0,0.0001299,2]
[342148703,1731509445767,-151.0,0.0001299,2]
[342148706,1731509445778,-151.0,0.0001299,2]
[342148709,1731509445788,-287.58235,0.0001299,2]
[342148712,1731509445798,-151.0,0.0001299,2]
[342148715,1731509445809,-151.0,0.0001299,2]
[342148718,1731509445820,-151.0,0.0001299,2]
[342148721,1731509445829,-151.0,0.0001299,2]
[342148723,1731509445839,-151.0,0.0001299,2]
[342148725,1731509445849,-902.204848,0.0001299,2]
[342148728,1731509445860,-902.204848,0.0001299,2]
[342148731,1731509445870,-5113.217394,0.0001299,2]
[342148734,1731509445880,-245.87882,0.0001299,2]
[342148737,1731509445890,-245.87882,0.0001299,2]
[342148741,1731509445901,-22934.76363963,0.00012999,2]
[342148746,1731509445914,-8170.66167753,0.00012999,2]
[342148750,1731509445925,-1080.48836848,0.00012999,3]
[342148754,1731509445938,-1080.48836847,0.00012999,3]
[342148758,1731509445949,-151.0,0.00012999,2]
[342148762,1731509445959,-151.0,0.00012999,2]
[342148767,1731509445971,-525.619384,0.00012999,2]
[342148771,1731509445983,-525.619384,0.00012999,2]
[342148777,1731509445994,-153.474446,0.00012999,2]
[342148780,1731509446006,-2627.604067,0.00012999,2]
[342148783,1731509446017,-157.83869,0.00012999,2]
[342148786,1731509446027,-2627.604067,0.00012999,2]
[342148788,1731509446038,-157.83869,0.00012999,2]
[342148790,1731509446048,-151.0,0.00012999,2]
[342148792,1731509446059,-151.0,0.00012999,2]
[342148794,1731509446071,-151.0,0.00012999,2]
[342148796,1731509446081,-5550.43364367,0.00012999,2]
[342148799,1731509446095,-647.03681964,0.00012999,2]
[342148812,1731509446224,-3802.52953669,0.00012999,2]
[342148814,1731509446235,-5254.56764363,0.00012999,2]
[342148816,1731509446247,-4745.43235637,0.00012999,2]
[342148818,1731509446257,-10000.0,0.00012999,2]
[342148820,1731509446267,-10000.0,0.00012999,2]
[342148822,1731509446278,-10000.0,0.00012999,2]
[342148825,1731509446288,-656.556153,0.00012999,2]
[342148827,1731509446299,-656.556153,0.00012999,2]
[342148828,1731509446308,-151.0,0.00012999,2]
[342148831,1731509446319,-151.0,0.00012999,2]
[342148833,1731509446330,-54375.92611543,0.00012999,2]
[342148835,1731509446342,-1908.08400001,0.00012999,2]
[342148837,1731509446354,-250.69,0.00012999,2]
[342148840,1731509446368,-6666.53515698,0.00012999,2]
[342148842,1731509446381,-3020.89345025,0.00012999,2]
[342148844,1731509446393,-2594.99326305,0.00012999,2]
[342148846,1731509446407,-354945.31517942,0.00012999,2]
[342148847,1731509446428,-9059.44816065,0.00012999,2]
[342148848,1731509446443,-4426.88633819,0.00012999,2]
[342148849,1731509446455,-1589.7175,0.00012999,2]
[342148850,1731509446467,-90226.39964813,0.00012999,2]
[342148854,1731509446565,-166.0,0.00012298,2]
[342148856,1731509446576,-547601.774246,0.00012999,2]
[342148858,1731509446588,-1946.96593991,0.00012999,2]
[342148860,1731509446608,-408.48882439,0.00012999,2]
[342148862,1731509446621,-620.10217879,0.00012999,2]
[342148865,1731509446634,-454257.58890194,0.00012999,2]
[342148910,1731509447105,-11568.52255503,0.00012999,2]
[342148912,1731509447119,-1470.44625246,0.00012999,2]
[342148914,1731509447132,-540.498,0.00012999,2]
[342148916,1731509447145,-2748.588,0.00012999,2]
[342148922,1731509447211,-401989.58889782,0.00012999,2]
[342148924,1731509447226,-15432.36069679,0.00012999,2]
[342148927,1731509447240,-4529.585,0.00012999,2]
[342148929,1731509447256,-3287.34103081,0.00012999,2]
[342148933,1731509447284,-1002.60244822,0.000129,2]
[342148935,1731509447296,-6257.43994178,0.00012999,2]
[342148937,1731509447310,-10745.0986715,0.00012999,2]
[342148939,1731509447325,-7084.521895,0.00012999,2]
[342148941,1731509447341,-12079.4238,0.00012999,2]
[342148944,1731509447354,-2879.25580222,0.00012999,2]
[342148953,1731509447448,-313.04976556,0.00012999,2]
[342148955,1731509447461,-2437.27193869,0.00012999,2]
[342148961,1731509447509,-3865.94145,0.00012999,2]
[342148964,1731509447522,-83605.390106,0.00012999,2]
[342148966,1731509447534,-1129.1225445,0.00012999,2]
[342148968,1731509447546,-16310.49999998,0.00012999,2]
[342148971,1731509447558,-2156.78,0.00012999,2]
[342148973,1731509447569,-14496.53560506,0.00012999,2]
[342148975,1731509447580,-45300.0,0.00012999,2]
[342148977,1731509447593,-1637.3,0.00012999,2]
[342148979,1731509447604,-4525.92359025,0.00012999,2]
[342149765,1731509455642,-38199.18696169,0.00012999,2]
[342149767,1731509455654,-75597.249615,0.00012999,2]
[342150355,1731509596771,500.0,0.00025294,120]
[342150356,1731509597141,500.0,0.00026999,120]
[342150357,1731509607864,2000.0,0.00026999,120]
[342150358,1731509608366,1041.66,0.00016658,30]
[342150359,1731509609473,800.0,0.00026986,120]
[342150360,1731509612310,500.0,0.00022166,120]
[342150361,1731509612701,284.528382,0.00026999,120]
[342150362,1731509618119,500.0,0.00026198,120]
[342150363,1731509618181,500.0,0.00026999,120]
[342150364,1731509621934,467.2429906,0.00027,120]
[342150365,1731509627376,1455.0,0.00027,60]
[342150366,1731509629918,200.0,0.00026329,120]
[342150367,1731509696735,-11569.0,9.799e-05,2]
[342150368,1731509984417,175.0,0.00027,60]
[342150369,1731510064807,150.0,0.00027,60]
[342150370,1731510110526,2909.17,0.00027,60]
[342150371,1731510195915,500.0,0.00026121,120]
[342150372,1731510196767,500.0,0.00026999,120]
[342150373,1731510205856,5000.0,0.00027,60]
[342150374,1731510208030,2000.0,0.00025304,120]
[342150375,1731510208461,2000.0,0.00026445,120]
[342150376,1731510208869,2000.0,0.00026999,120]
[342150377,1731510212847,5000.0,0.00027,60]
[342150378,1731510225538,5000.0,0.00027,60]
[342150379,1731510233092,5000.0,0.00027,60]
[342150380,1731510236698,5000.0,0.00027,60]
[342150381,1731510248678,500.0,0.00025023,120]
[342150382,1731510249228,500.0,0.00026999,120]
[342150383,1731510260261,200.0,0.00024997,120]
[342150384,1731510260650,200.0,0.00026971,120]
[342150385,1731510274159,5000.0,0.00027,60]
[342150386,1731510322279,5185.0,0.00027,60]
[342150387,1731510351421,-154.75,8.219e-05,2]
[342150388,1731510351442,-14687.285848,9.393e-05,2]
[342150389,1731510351464,-3216.01205288,9.441e-05,2]
[342150390,1731510351484,-3183.53603457,9.441e-05,2]
[342150391,1731510351505,-3183.53603455,9.49e-05,2]
[342150392,1731510351538,-500.0,9.538e-05,2]
[342150393,1731510351560,-500.0,9.538e-05,2]
[342150394,1731510351582,-500.0,9.538e-05,2]
[342150395,1731510351606,-3183.53603455,9.538e-05,2]
[342150396,1731510351629,-2753.44,9.686e-05,2]
[342150397,1731510351652,-588.76240377,9.899e-05,2]
[342150398,1731510351675,-150.0,9.899e-05,2]
[342150399,1731510351695,-6830.91726964,9.9e-05,2]
[342150400,1731510357176,-7881.63246782,9.9e-05,2]
[342150401,1731510421190,400.0,0.00027,60]
[342150402,1731510429122,-300.0,9.899e-05,2]
[342150403,1731510429146,-5741.31753346,9.9e-05,2]
[342150404,1731510435111,-1299.7765445,9.9e-05,2]
[342150405,1731510438091,-14234.65838458,9.9e-05,2]
[342150406,1731510438115,-164.05,0.00010509,2]
[342150407,1731510438138,-1000.0,0.00010593,2]
[342150408,1731510438161,-164.89,0.00010594,2]
[342150409,1731510438188,-250.0,0.00010803,2]
[342150410,1731510438211,-748.05961709,0.00010851,2]
[342150411,1731510438235,-23900.0,0.00010852,2]
[342150412,1731510438259,-420.0,0.00010889,2]
[342150413,1731510438285,-1375.0,0.00010958,2]
[342150414,1731510438309,-150.0,0.00010958,2]
[342150415,1731510438337,-660.93,0.00010959,2]
[342150416,1731510438367,-1500.0,0.00010959,2]
[342150417,1731510438391,-212.23,0.00010959,2]
[342150418,1731510438414,-176.86,0.00010959,2]
[342150419,1731510438443,-884.34,0.00010959,2]
[342150420,1731510438466,-4778.514,0.0001106,2]
[342150421,1731510438489,-174.317,0.00011117,2]
[342150422,1731510438514,-159.2,0.00011136,2]
[342150423,1731510438538,-159.2,0.00011141,2]
[342150424,1731510438562,-159.2,0.00011146,2]
[342150425,1731510438586,-159.2,0.00011151,2]
[342150426,1731510438610,-159.2,0.00011156,2]
[342150427,1731510438633,-159.2,0.00011161,2]
[342150428,1731510438655,-159.2,0.00011166,2]
[342150429,1731510438685,-159.2,0.00011171,2]
[342150430,1731510438709,-159.2,0.00011176,2]
[342150431,1731510438733,-159.2,0.00011181,2]
[342150432,1731510438756,-159.2,0.00011186,2]
[342150433,1731510438779,-159.2,0.00011191,2]
[342150434,1731510438802,-250.0,0.000112,2]
[342150435,1731510438824,-200.0,0.000112,2]
[342150436,1731510438846,-1244.84,0.000112,2]
[342150437,1731510438870,-559.11920239,0.00011272,2]
[342150438,1731510438940,400.0,0.00027,60]
[342150439,1731510450104,-56.84079761,0.00011272,2]
[342150440,1731510450126,-499.99,0.00011272,2]
[342150441,1731510450148,-824.27,0.00011272,2]
[342150442,1731510450169,-3510.78,0.00011277,2]
[342150443,1731510450194,-200.0,0.00011277,2]
[342150444,1731510450215,-812.26,0.00011377,2]
[342150445,1731510450236,-2000.0,0.00011476,2]
[342150446,1731510450257,-1340.11,0.00011476,2]
[342150447,1731510450278,-8667.25,0.00011476,2]
[342150448,1731510450299,-660.93,0.00011507,2]
[342150449,1731510450320,-250.0,0.00011604,2]
[342150450,1731510450341,-1501.61,0.00011604,2]
[342150451,1731510450362,-150.99,0.00011604,2]
[342150452,1731510450383,-6145.75,0.00011604,2]
[342150453,1731510450409,-897.25,0.000117,2]
[342150454,1731510450433,-167.0,0.00011719,2]
[342150455,1731510450453,-1540.7,0.00011746,2]
[342150456,1731510450474,-1239.5281,0.00011899,2]
[342150457,1731510450496,-1000.0,0.00011917,2]
[342150458,1731510450518,-2753.44,0.0001195,2]
[342150459,1731510450541,-587.0,0.00011978,2]
[342150460,1731510450563,-255.0,0.00011999,2]
[342150461,1731510450584,-7569.45,0.00012028,2]
[342150462,1731510450606,-660.93,0.00012055,2]
[342150463,1731510450628,-167.0,0.00012105,2]
[342150464,1731510450650,-432.63,0.00012137,2]
[342150465,1731510450671,-2500.0,0.00012229,2]
[342150466,1731510450706,-21253.77885084,0.00012297,2]
[342150467,1731510450728,-156.181,0.00012298,2]
[342150468,1731510450748,-250.0,0.00012298,2]
[342150469,1731510450769,-43553.63,0.00012329,2]
[342150470,1731510450792,-21253.77885081,0.00012364,2]
[342150471,1731510450813,-151.5,0.00012397,2]
[342150472,1731510450838,-21253.77885081,0.00012431,2]
[342150473,1731510450861,-167.0,0.00012492,2]
[342150474,1731510450888,-21253.77885081,0.00012498,2]
[342150475,1731510450918,-169.04724487,0.00012498,2]
[342150476,1731510450947,-1941.50774478,0.000125,2]
[342150477,1731510450969,-967.64,0.00012548,2]
[342150478,1731510450993,-21253.77885081,0.00012565,2]
[342150479,1731510451014,-150.0,0.00012598,2]
[342150480,1731510451035,-282.457,0.00012598,2]
[342150481,1731510451056,-248.804,0.00012598,2]
[342150482,1731510451077,-5931.0,0.00012598,2]
[342150483,1731510451099,-453.0,0.00012598,2]
[342150484,1731510451121,-1255.0,0.00012598,2]
[342150485,1731510451142,-150.0,0.00012598,2]
[342150486,1731510451165,-628.0,0.00012598,2]
[342150487,1731510451193,-563.0,0.00012598,2]
[342150488,1731510451215,-150.0,0.00012598,2]
[342150489,1731510451237,-1992.0,0.00012598,2]
[342150490,1731510451258,-1924.0,0.00012598,2]
[342150491,1731510451280,-559.0,0.00012598,2]
[342150492,1731510451300,-1259.0,0.00012598,2]
[342150493,1731510451321,-814.0,0.00012598,2]
[342150494,1731510451342,-3745.0,0.00012598,2]
[342150495,1731510451364,-922.0,0.00012598,2]
[342150496,1731510451389,-3488.0,0.00012598,2]
[342150497,1731510451410,-13637.0,0.00012598,2]
[342150498,1731510451436,-1160.0,0.00012598,2]
[342150499,1731510451459,-956.21053776,0.00012598,2]
[342150500,1731510456622,400.0,0.00027,60]
[342150501,1731510471896,3793.999999,0.00027,60]
[342150502,1731510495761,18000.0,0.00027,60]
[342150528,1731510632106,-150.0,0.00011287,2]
[342150529,1731510632116,-205.0,0.00011604,2]
[342150530,1731510632128,-263.548,0.00011619,2]
[342150531,1731510632137,-7342.1071,0.00011619,2]
[342150532,1731510632148,-2020.2892,0.00011619,2]
[342150533,1731510632158,-1116.8887,0.00011619,2]
[342150534,1731510632168,-150.0,0.00011688,2]
[342150535,1731510632178,-644.33,0.00011823,2]
[342150536,1731510632187,-150.0,0.00011904,2]
[342150537,1731510632198,-174.61,0.00012013,2]
[342150538,1731510632208,-400.0,0.000121,4]
[342150539,1731510632217,-150.0,0.00012121,2]
[342150540,1731510632227,-800.0,0.000122,4]
[342150541,1731510632237,-1200.0,0.000123,4]
[342150542,1731510632247,-150.99,0.000123,2]
[342150543,1731510632256,-1000.0,0.00012331,2]
[342150544,1731510632267,-2500.0,0.00012331,2]
[342150545,1731510632277,-150.0,0.00012337,2]
[342150546,1731510632287,-13637.0,0.00012358,2]
[342150547,1731510632297,-5931.0,0.00012358,2]
[342150548,1731510632307,-673.939,0.00012358,2]
[342150549,1731510632316,-150.0,0.00012358,2]
[342150550,1731510632326,-7486.45,0.0001236,2]
[342150551,1731510632335,-1700.0,0.000124,4]
[342150552,1731510632345,-2100.0,0.000125,4]
[342150553,1731510632355,-150.0,0.00012553,2]
[342150554,1731510632365,-8023.6834864,0.00012589,2]
[342150555,1731510632379,-1321.0891625,0.00012589,2]
[342150556,1731510632389,-400.0,0.000126,4]
[342150557,1731510632403,-660.93,0.00012603,2]
[342150558,1731510632414,-914743.12945696,0.0001268,2]
[342150559,1731510632424,-615.96,0.00012681,2]
[342150560,1731510632434,-413.35230834,0.00012698,2]
[342150561,1731510632444,-169.04724486,0.00012699,2]
[342150562,1731510632455,-8182.5423,0.00012699,2]
[342150563,1731510632465,-5578.5548,0.00012699,2]
[342150564,1731510632475,-400.0,0.000127,4]
[342150565,1731510632485,-150.0,0.0001277,2]
[342150566,1731510632494,-150.0,0.00012798,2]
[342150568,1731510632504,-17178.1782,0.00012799,2]
[342150570,1731510632514,-13838.4932,0.00012799,2]
[342150572,1731510632524,-6653.2873,0.00012799,2]
[342150573,1731510632534,-15759.7041,0.00012799,2]
[342150574,1731510632543,-360.4451,0.00012799,2]
[342150575,1731510632553,-246.5345,0.00012799,2]
[342150576,1731510632562,-3132.9005,0.00012799,2]
[342150577,1731510632572,-11517.3832,0.00012799,2]
[342150578,1731510632581,-217673.649,0.00012799,2]
[342150579,1731510632591,-329.4052,0.00012799,2]
[342150580,1731510632600,-500.0,0.00012799,2]
[342150581,1731510632609,-1000.0,0.00012799,2]
[342150583,1731510632619,-7724.5864,0.00012799,2]
[342150585,1731510632633,-5000.0,0.00012799,2]
[342150587,1731510632642,-181.1448742,0.000128,2]
[342150589,1731510632651,-160.4016009,0.000128,2]
[342150591,1731510632661,-400.0,0.000128,4]
[342150592,1731510632671,-10075.56332366,0.000128,2]
[342150593,1731510632680,-426.41767423,0.00012838,2]
[342150594,1731510632690,-3000.0,0.0001287,2]
[342150595,1731510632699,-614.12831935,0.00012873,2]
[342150596,1731510632709,-250.0,0.00012877,2]
[342150597,1731510632718,-167.0,0.00012879,2]
[342150598,1731510632727,-500.0,0.00012895,2]
[342150599,1731510632738,-200.0,0.00012895,2]
[342150600,1731510632748,-500.0,0.00012898,2]
[342150601,1731510632758,-3891.0,0.00012899,2]
[342150602,1731510632767,-37889.5893,0.00012899,2]
[342150603,1731510632777,-91965.47710303,0.00012899,2]
[342150604,1731510632789,-8034.52289697,0.00012899,2]
[342150605,1731510632798,-42862.0966183,0.00012899,2]
[342150606,1731510632840,-6111.93845335,0.00012899,2]
[342150607,1731510632851,-702.71610512,0.00012899,2]
[342150608,1731510632862,-2224.05696357,0.00012899,2]
[342150609,1731510632895,-17168.23946774,0.00012899,2]
[342150610,1731510632907,-75162.01431574,0.00012899,2]
[342150611,1731510632918,-10959.99999978,0.00012899,2]
[342150612,1731510632930,-89808.9380764,0.00012899,2]
[342150613,1731510632940,-487.6669,0.00012899,2]
[342150614,1731510632951,-200.0,0.000129,2]
[342150615,1731510632961,-200.0,0.000129,2]
[342150616,1731510632974,-164.48138485,0.000129,2]
[342150617,1731510632983,-400.0,0.000129,4]
[342150618,1731510632993,-8782.68914622,0.000129,2]
[342150619,1731510633003,-310.528289,0.000129,2]
[342150620,1731510633012,-10879.54487837,0.000129,2]
[342150621,1731510633022,-151.5,0.00012924,2]
[342150622,1731510633031,-165.10555121,0.00012973,2]
[342150623,1731510633042,-500.0,0.00012973,2]
[342150624,1731510633052,-152.15403772,0.00012973,2]
[342150625,1731510633062,-500.0,0.00012973,2]
[342150626,1731510633072,-500.0,0.00012973,2]
[342150627,1731510633081,-162.16435675,0.00012973,2]
[342150628,1731510633091,-160.47938732,0.00012973,2]
[342150629,1731510633101,-500.0,0.00012973,2]
[342150630,1731510633111,-202.8851468,0.00012973,2]
[342150631,1731510633121,-209.68716483,0.00012986,2]
[342150632,1731510633135,-57320.53182342,0.0001299,2]
[342150633,1731510633144,-207.14246121,0.00012998,2]
[342150634,1731510633154,-500.0,0.00012998,2]
[342150635,1731510633166,-500.0,0.00012998,2]
[342150636,1731510633175,-500.0,0.00012998,2]
[342150637,1731510633186,-500.0,0.00012998,2]
[342150638,1731510633196,-500.0,0.00012998,2]
[342150639,1731510633205,-7585.91,0.00012998,2]
[342150640,1731510633215,-1375.0,0.00012999,2]
[342150641,1731510633225,-225418.05410784,0.00013,2]
[342150642,1731510633238,-32325.0,0.00013,2]
[342150643,1731510633250,-1933.11892,0.00013,2]
[342150644,1731510633262,-2744.22,0.00013,2]
[342150645,1731510633274,-3735.11538798,0.00013,2]
[342150646,1731510633287,-13695.69603422,0.00013,2]
[342150647,1731510633313,-500.0,0.00012998,2]
[342150648,1731510633324,-544.35100001,0.00013,2]
[342150649,1731510635330,989.57,0.00016658,30]
[342150661,1731510638093,-619.68772609,0.00012358,2]
[342150662,1731510638106,-471.31227391,0.00012358,2]
[342150663,1731510638127,-509.66963456,0.00012679,2]
[342150664,1731510638137,-500.0,0.00012679,2]
[342150665,1731510638147,-500.0,0.00012679,2]
[342150666,1731510638156,-594.70621592,0.00012679,2]
[342150667,1731510638166,-448.10539263,0.00012679,2]
[342150668,1731510638175,-500.0,0.00012998,2]
[342150669,1731510638185,-500.0,0.00012998,2]
[342150670,1731510638200,-500.0,0.00012998,2]
[342150671,1731510638212,-372.59263759,0.00012998,2]
[342150672,1731510638222,-500.0,0.00012998,2]
[342150673,1731510638232,-45278.3716264,0.00013,2]
[342150674,1731510638244,-2746.29,0.00013,2]
[342150675,1731510638255,-1697.8306,0.00013,2]
[342150676,1731510638267,-1203.48936,0.00013,2]
[342150677,1731510638278,-851.85965161,0.00013,2]
[342150678,1731510638291,-9165.8922642,0.00013,2]
[342150679,1731510638302,-23409.9072024,0.00013,2]
[342150680,1731510638314,-6987.97771806,0.00013,2]
[342150681,1731510638333,-21961.95656173,0.00013,2]